[Event "Titled Tuesday Blitz May 23 Late 2023"]
[White "Shapiro, Viktor"]
[Black "Hambleton, Aman"]
[WhiteFideId "4175700"]
[BlackFideId "2606577"]
[WhiteElo "2152"]
[BlackElo "2511"]
[Result "0-1"]
[Round "01"]
[TimeControl "180+2"]
[Date "2023.05.23"]
[WhiteClock "0:02:02"]
[BlackClock "0:02:07"]

1. c4 {[%clk 0:02:58]}  c5 {[%clk 0:02:53]} 2. Nc3 {[%clk 0:02:59]}  b6 {[%clk 0:02:52]} 3. g3 {[%clk 0:02:59]}  Bb7 {[%clk 0:02:52]} 4. Nf3 {[%clk 0:03:00]}  Bxf3 {[%clk 0:02:53]} 5. exf3 {[%clk 0:03:00]}  Nc6 {[%clk 0:02:54]} 6. Bg2 {[%clk 0:03:00]}  g6 {[%clk 0:02:54]} 7. f4 {[%clk 0:03:01]}  Bg7 {[%clk 0:02:55]} 8. O-O {[%clk 0:03:01]}  Nh6 {[%clk 0:02:55]} 9. d3 {[%clk 0:03:01]}  Nf5 {[%clk 0:02:56]} 10. Be3 {[%clk 0:02:59]}  e6 {[%clk 0:02:54]} 11. Qd2 {[%clk 0:02:47]}  h5 {[%clk 0:02:51]} 12. a3 {[%clk 0:02:44]}  Ncd4 {[%clk 0:02:48]} 13. Qd1 {[%clk 0:02:39]}  Rc8 {[%clk 0:02:43]} 14. Rb1 {[%clk 0:02:38]}  O-O {[%clk 0:02:41]} 15. b4 {[%clk 0:02:36]}  Nxe3 {[%clk 0:02:27]} 16. fxe3 {[%clk 0:02:36]}  Nf5 {[%clk 0:02:28]} 17. Qd2 {[%clk 0:02:34]}  Nxe3 {[%clk 0:02:25]} 18. Rfe1 {[%clk 0:02:24]}  Nxg2 {[%clk 0:02:08]} 19. Kxg2 {[%clk 0:02:24]}  d5 {[%clk 0:02:09]} 20. cxd5 {[%clk 0:02:23]}  cxb4 {[%clk 0:02:09]} 21. Ne4 {[%clk 0:02:02]}  Qxd5 {[%clk 0:02:07]} 0-1


[Site "https://www.chess.com"]

[Event "Titled Tuesday Blitz May 23 Late 2023"]
[White "Bryakin, Mikhail"]
[Black "Zeman, Matyas"]
[WhiteFideId "4165314"]
[BlackFideId "364398"]
[WhiteElo "2467"]
[BlackElo "2254"]
[Result "1-0"]
[Round "01"]
[TimeControl "180+2"]
[Date "2023.05.23"]
[WhiteClock "0:00:48"]
[BlackClock "0:01:02"]

1. e4 {[%clk 0:02:54]}  e6 {[%clk 0:02:57]} 2. d4 {[%clk 0:02:51]}  d5 {[%clk 0:02:56]} 3. Nc3 {[%clk 0:02:51]}  Nf6 {[%clk 0:02:49]} 4. Bg5 {[%clk 0:02:50]}  Bb4 {[%clk 0:02:47]} 5. e5 {[%clk 0:02:44]}  h6 {[%clk 0:02:47]} 6. Bd2 {[%clk 0:02:42]}  Bxc3 {[%clk 0:02:44]} 7. bxc3 {[%clk 0:02:42]}  Ne4 {[%clk 0:02:45]} 8. Bd3 {[%clk 0:02:22]}  Nxd2 {[%clk 0:02:44]} 9. Qxd2 {[%clk 0:02:23]}  c5 {[%clk 0:02:44]} 10. Nf3 {[%clk 0:02:19]}  Qa5 {[%clk 0:02:44]} 11. a4 {[%clk 0:02:11]}  Nc6 {[%clk 0:02:40]} 12. h4 {[%clk 0:02:11]}  Bd7 {[%clk 0:02:35]} 13. h5 {[%clk 0:02:10]}  O-O {[%clk 0:02:31]} 14. Rh3 {[%clk 0:02:06]}  cxd4 {[%clk 0:02:31]} 15. cxd4 {[%clk 0:02:03]}  Qxd2+ {[%clk 0:02:30]} 16. Kxd2 {[%clk 0:02:04]}  Rac8 {[%clk 0:02:29]} 17. Rhh1 {[%clk 0:01:56]}  Na5 {[%clk 0:02:28]} 18. Rhb1 {[%clk 0:01:53]}  b6 {[%clk 0:02:27]} 19. g4 {[%clk 0:01:36]}  Rc7 {[%clk 0:02:21]} 20. g5 {[%clk 0:01:32]}  Rfc8 {[%clk 0:02:15]} 21. gxh6 {[%clk 0:01:31]}  gxh6 {[%clk 0:02:16]} 22. Rg1+ {[%clk 0:01:30]}  Kf8 {[%clk 0:02:16]} 23. Nh2 {[%clk 0:01:27]}  Nc4+ {[%clk 0:02:07]} 24. Ke2 {[%clk 0:01:26]}  Nb2 {[%clk 0:02:06]} 25. a5 {[%clk 0:01:23]}  Nxd3 {[%clk 0:02:02]} 26. cxd3 {[%clk 0:01:21]}  Rc2+ {[%clk 0:02:02]} 27. Ke3 {[%clk 0:01:21]}  R8c3 {[%clk 0:01:58]} 28. Ng4 {[%clk 0:01:20]}  Bb5 {[%clk 0:01:57]} 29. Rgd1 {[%clk 0:01:14]}  Kg7 {[%clk 0:01:54]} 30. axb6 {[%clk 0:01:14]}  axb6 {[%clk 0:01:53]} 31. Rab1 {[%clk 0:01:06]}  Ba4 {[%clk 0:01:42]} 32. Rxb6 {[%clk 0:01:02]}  Ra2 {[%clk 0:01:39]} 33. Rd2 {[%clk 0:00:59]}  Raa3 {[%clk 0:01:19]} 34. Rb8 {[%clk 0:00:53]}  Bc2 {[%clk 0:01:18]} 35. Nf6 {[%clk 0:00:48]}  Rxd3+ {[%clk 0:01:18]} 36. Rxd3 {[%clk 0:00:48]}  Rxd3+ {[%clk 0:01:02]} 37. Ke2 {[%clk 0:00:48]} 1-0


[Site "https://www.chess.com"]

[Event "Titled Tuesday Blitz May 23 Late 2023"]
[White "Rostovtsev, Dmitry"]
[Black "Kielinkei"]
[WhiteFideId "34278320"]
[WhiteElo "2344"]
[BlackElo "2447"]
[Result "1-0"]
[Round "01"]
[TimeControl "180+2"]
[Date "2023.05.23"]
[WhiteClock "0:00:30"]
[BlackClock "0:00:05"]

1. e4 {[%clk 0:02:59]}  c5 {[%clk 0:02:59]} 2. Nf3 {[%clk 0:02:59]}  e6 {[%clk 0:03:00]} 3. d4 {[%clk 0:02:59]}  cxd4 {[%clk 0:03:01]} 4. Nxd4 {[%clk 0:03:00]}  Nc6 {[%clk 0:03:01]} 5. Nc3 {[%clk 0:03:00]}  Qc7 {[%clk 0:03:01]} 6. Be3 {[%clk 0:03:01]}  a6 {[%clk 0:03:01]} 7. Qf3 {[%clk 0:03:01]}  Bd6 {[%clk 0:03:01]} 8. O-O-O {[%clk 0:02:58]}  Be5 {[%clk 0:03:01]} 9. g4 {[%clk 0:02:50]}  Nxd4 {[%clk 0:02:54]} 10. Bxd4 {[%clk 0:02:50]}  Ne7 {[%clk 0:02:54]} 11. g5 {[%clk 0:02:47]}  Bxd4 {[%clk 0:02:37]} 12. Rxd4 {[%clk 0:02:47]}  Qc5 {[%clk 0:02:29]} 13. Qe3 {[%clk 0:02:45]}  Nc6 {[%clk 0:02:29]} 14. Rd3 {[%clk 0:02:45]}  Qxe3+ {[%clk 0:02:23]} 15. Rxe3 {[%clk 0:02:46]}  d6 {[%clk 0:02:19]} 16. Rg1 {[%clk 0:02:43]}  Ke7 {[%clk 0:02:16]} 17. f4 {[%clk 0:02:43]}  b5 {[%clk 0:02:13]} 18. Bg2 {[%clk 0:02:41]}  Bd7 {[%clk 0:02:11]} 19. Rd1 {[%clk 0:02:41]}  Rhd8 {[%clk 0:02:00]} 20. Nd5+ {[%clk 0:02:39]}  Kf8 {[%clk 0:01:51]} 21. Nc3 {[%clk 0:02:30]}  Be8 {[%clk 0:01:48]} 22. Red3 {[%clk 0:02:28]}  Ke7 {[%clk 0:01:45]} 23. a3 {[%clk 0:02:28]}  Rab8 {[%clk 0:01:41]} 24. h4 {[%clk 0:02:28]}  b4 {[%clk 0:01:34]} 25. axb4 {[%clk 0:02:29]}  Nxb4 {[%clk 0:01:35]} 26. Rd4 {[%clk 0:02:29]}  Bc6 {[%clk 0:01:24]} 27. Bf1 {[%clk 0:02:25]}  a5 {[%clk 0:01:21]} 28. Bc4 {[%clk 0:02:24]}  Rbc8 {[%clk 0:01:15]} 29. Kb1 {[%clk 0:02:23]}  Rd7 {[%clk 0:00:50]} 30. Bb3 {[%clk 0:02:21]}  Rb8 {[%clk 0:00:43]} 31. Ba4 {[%clk 0:02:12]}  Bxa4 {[%clk 0:00:41]} 32. Nxa4 {[%clk 0:02:13]}  Rbb7 {[%clk 0:00:34]} 33. e5 {[%clk 0:02:08]}  dxe5 {[%clk 0:00:33]} 34. Rxd7+ {[%clk 0:01:59]}  Rxd7 {[%clk 0:00:32]} 35. Rxd7+ {[%clk 0:01:59]}  Kxd7 {[%clk 0:00:33]} 36. fxe5 {[%clk 0:02:00]}  Kc6 {[%clk 0:00:30]} 37. Nc3 {[%clk 0:02:01]}  Kc5 {[%clk 0:00:28]} 38. Ne4+ {[%clk 0:01:49]}  Kd5 {[%clk 0:00:28]} 39. Nd6 {[%clk 0:01:48]}  Kxe5 {[%clk 0:00:28]} 40. Nxf7+ {[%clk 0:01:49]}  Kf4 {[%clk 0:00:27]} 41. Nd6 {[%clk 0:01:47]}  e5 {[%clk 0:00:25]} 42. Nc4 {[%clk 0:01:45]}  e4 {[%clk 0:00:25]} 43. c3 {[%clk 0:01:40]}  e3 {[%clk 0:00:14]} 44. Nxe3 {[%clk 0:00:29]}  Kxe3 {[%clk 0:00:14]} 45. cxb4 {[%clk 0:00:30]}  axb4 {[%clk 0:00:15]} 46. Kc2 {[%clk 0:00:31]}  Kd4 {[%clk 0:00:16]} 47. Kb3 {[%clk 0:00:28]}  Kc5 {[%clk 0:00:16]} 48. Ka4 {[%clk 0:00:23]}  Kc4 {[%clk 0:00:17]} 49. b3+ {[%clk 0:00:23]}  Kd4 {[%clk 0:00:03]} 50. Kxb4 {[%clk 0:00:23]}  Ke4 {[%clk 0:00:04]} 51. Kc4 {[%clk 0:00:23]}  Kf4 {[%clk 0:00:05]} 52. b4 {[%clk 0:00:23]}  Kg4 {[%clk 0:00:05]} 53. b5 {[%clk 0:00:23]}  Kxh4 {[%clk 0:00:06]} 54. b6 {[%clk 0:00:24]}  Kxg5 {[%clk 0:00:07]} 55. b7 {[%clk 0:00:25]}  Kh4 {[%clk 0:00:06]} 56. b8=Q {[%clk 0:00:25]}  g5 {[%clk 0:00:07]} 57. Kd3 {[%clk 0:00:24]}  Kh3 {[%clk 0:00:07]} 58. Ke2 {[%clk 0:00:24]}  g4 {[%clk 0:00:07]} 59. Kf2 {[%clk 0:00:24]}  Kh4 {[%clk 0:00:06]} 60. Qh2+ {[%clk 0:00:25]}  Kg5 {[%clk 0:00:06]} 61. Qxh7 {[%clk 0:00:26]}  Kf4 {[%clk 0:00:07]} 62. Kg2 {[%clk 0:00:26]}  Kg5 {[%clk 0:00:05]} 63. Qh1 {[%clk 0:00:27]}  Kf4 {[%clk 0:00:05]} 64. Qe1 {[%clk 0:00:28]}  Kg5 {[%clk 0:00:05]} 65. Qg3 {[%clk 0:00:29]}  Kf5 {[%clk 0:00:06]} 66. Kf2 {[%clk 0:00:30]}  Kg5 {[%clk 0:00:05]} 67. Ke3 {[%clk 0:00:30]} 1-0


[Site "https://www.chess.com"]

[Event "Titled Tuesday Blitz May 23 Late 2023"]
[White "Bachmann, Axel"]
[Black "Kaplan, Avi Harrison"]
[WhiteFideId "3700488"]
[BlackFideId "30934559"]
[WhiteElo "2605"]
[BlackElo "1983"]
[Result "1-0"]
[Round "01"]
[TimeControl "180+2"]
[Date "2023.05.23"]
[WhiteClock "0:02:36"]
[BlackClock "0:01:33"]

1. Nf3 {[%clk 0:03:00]}  d6 {[%clk 0:02:58]} 2. c4 {[%clk 0:02:59]}  e5 {[%clk 0:02:54]} 3. Nc3 {[%clk 0:03:00]}  f5 {[%clk 0:02:50]} 4. d4 {[%clk 0:03:00]}  Nd7 {[%clk 0:02:46]} 5. Ng5 {[%clk 0:02:53]}  exd4 {[%clk 0:02:04]} 6. Ne6 {[%clk 0:02:52]}  Qf6 {[%clk 0:02:00]} 7. Nxc7+ {[%clk 0:02:52]}  Kd8 {[%clk 0:02:00]} 8. N3d5 {[%clk 0:02:53]}  Qf7 {[%clk 0:01:53]} 9. Nxa8 {[%clk 0:02:49]}  Ngf6 {[%clk 0:01:46]} 10. Nac7 {[%clk 0:02:48]}  Nb6 {[%clk 0:01:46]} 11. Bg5 {[%clk 0:02:41]}  Nxc4 {[%clk 0:01:33]} 12. Qxd4 {[%clk 0:02:36]} 1-0


[Site "https://www.chess.com"]

[Event "Titled Tuesday Blitz May 23 Late 2023"]
[White "Kovalevsky, Stanislav"]
[Black "Fernandez Guillen, Ernesto J."]
[WhiteFideId "13508598"]
[BlackFideId "3512428"]
[WhiteElo "2174"]
[BlackElo "2429"]
[Result "0-1"]
[Round "01"]
[TimeControl "180+2"]
[Date "2023.05.23"]
[WhiteClock "0:00:17"]
[BlackClock "0:00:37"]

1. c4 {[%clk 0:02:58]}  e5 {[%clk 0:02:43]} 2. Nc3 {[%clk 0:02:58]}  Nc6 {[%clk 0:02:42]} 3. g3 {[%clk 0:02:58]}  g6 {[%clk 0:02:30]} 4. Bg2 {[%clk 0:02:57]}  Bg7 {[%clk 0:02:25]} 5. h4 {[%clk 0:02:57]}  h6 {[%clk 0:02:24]} 6. d3 {[%clk 0:02:53]}  d6 {[%clk 0:02:23]} 7. Be3 {[%clk 0:02:52]}  f5 {[%clk 0:02:23]} 8. Nd5 {[%clk 0:02:47]}  Nf6 {[%clk 0:02:23]} 9. Nxf6+ {[%clk 0:02:43]}  Qxf6 {[%clk 0:02:22]} 10. Qd2 {[%clk 0:02:43]}  Bd7 {[%clk 0:02:18]} 11. O-O-O {[%clk 0:02:41]}  O-O-O {[%clk 0:02:13]} 12. Kb1 {[%clk 0:02:40]}  Kb8 {[%clk 0:02:13]} 13. b4 {[%clk 0:02:33]}  f4 {[%clk 0:02:06]} 14. b5 {[%clk 0:01:56]}  fxe3 {[%clk 0:02:03]} 15. fxe3 {[%clk 0:01:57]}  Ne7 {[%clk 0:02:00]} 16. Nf3 {[%clk 0:01:54]}  Nf5 {[%clk 0:01:51]} 17. e4 {[%clk 0:01:19]}  Nxg3 {[%clk 0:01:50]} 18. Rhe1 {[%clk 0:01:19]}  g5 {[%clk 0:01:47]} 19. Qa5 {[%clk 0:01:17]}  b6 {[%clk 0:01:45]} 20. Qa3 {[%clk 0:01:15]}  g4 {[%clk 0:01:42]} 21. Nd2 {[%clk 0:01:06]}  Qxh4 {[%clk 0:01:42]} 22. d4 {[%clk 0:01:00]}  exd4 {[%clk 0:01:35]} 23. e5 {[%clk 0:01:00]}  Bxe5 {[%clk 0:01:31]} 24. Nb3 {[%clk 0:00:58]}  Qh2 {[%clk 0:01:23]} 25. Bd5 {[%clk 0:00:54]}  Bf5+ {[%clk 0:01:19]} 26. Rd3 {[%clk 0:00:48]}  Nxe2 {[%clk 0:01:15]} 27. Ka1 {[%clk 0:00:35]}  Nc3 {[%clk 0:01:12]} 28. Rd2 {[%clk 0:00:29]}  Qg3 {[%clk 0:01:04]} 29. Rxe5 {[%clk 0:00:20]}  Qxe5 {[%clk 0:00:57]} 30. Bc6 {[%clk 0:00:17]}  Qe1+ {[%clk 0:00:37]} 0-1


[Site "https://www.chess.com"]

[Event "Titled Tuesday Blitz May 23 Late 2023"]
[White "Sethuraman, S.P."]
[Black "Mackster23"]
[WhiteFideId "5021596"]
[WhiteElo "2543"]
[BlackElo "2439"]
[Result "1-0"]
[Round "01"]
[TimeControl "180+2"]
[Date "2023.05.23"]
[WhiteClock "0:00:14"]
[BlackClock "0:00:06"]

1. d4 {[%clk 0:03:00]}  d5 {[%clk 0:02:59]} 2. c4 {[%clk 0:03:01]}  c6 {[%clk 0:02:59]} 3. Nf3 {[%clk 0:03:00]}  Nf6 {[%clk 0:03:00]} 4. Qc2 {[%clk 0:03:01]}  e6 {[%clk 0:02:56]} 5. Nc3 {[%clk 0:03:00]}  Be7 {[%clk 0:02:55]} 6. e4 {[%clk 0:02:57]}  dxe4 {[%clk 0:02:54]} 7. Nxe4 {[%clk 0:02:58]}  Nbd7 {[%clk 0:02:52]} 8. Bd3 {[%clk 0:02:56]}  Nxe4 {[%clk 0:02:52]} 9. Bxe4 {[%clk 0:02:56]}  Nf6 {[%clk 0:02:53]} 10. Bd3 {[%clk 0:02:57]}  O-O {[%clk 0:02:42]} 11. Bd2 {[%clk 0:02:57]}  c5 {[%clk 0:02:25]} 12. dxc5 {[%clk 0:02:56]}  Bxc5 {[%clk 0:02:24]} 13. O-O-O {[%clk 0:02:57]}  h6 {[%clk 0:02:16]} 14. Bc3 {[%clk 0:02:50]}  Kh8 {[%clk 0:02:05]} 15. Ne5 {[%clk 0:02:47]}  Qe7 {[%clk 0:01:52]} 16. g4 {[%clk 0:02:44]}  Nd7 {[%clk 0:01:46]} 17. Nf3 {[%clk 0:02:34]}  b5 {[%clk 0:01:38]} 18. cxb5 {[%clk 0:02:24]}  Bb7 {[%clk 0:01:38]} 19. Be4 {[%clk 0:02:24]}  Nb6 {[%clk 0:01:27]} 20. Kb1 {[%clk 0:02:06]}  Bxe4 {[%clk 0:01:15]} 21. Qxe4 {[%clk 0:02:05]}  Nd5 {[%clk 0:01:16]} 22. Be5 {[%clk 0:01:57]}  Rad8 {[%clk 0:00:57]} 23. g5 {[%clk 0:01:47]}  hxg5 {[%clk 0:00:52]} 24. h4 {[%clk 0:01:47]}  g4 {[%clk 0:00:42]} 25. Qxg4 {[%clk 0:01:28]}  f6 {[%clk 0:00:42]} 26. Bd4 {[%clk 0:01:28]}  Bxd4 {[%clk 0:00:42]} 27. Nxd4 {[%clk 0:01:28]}  f5 {[%clk 0:00:33]} 28. Qg3 {[%clk 0:01:24]}  e5 {[%clk 0:00:24]} 29. Nc6 {[%clk 0:01:23]}  Qe6 {[%clk 0:00:18]} 30. Nxd8 {[%clk 0:01:20]}  Rxd8 {[%clk 0:00:19]} 31. Rhg1 {[%clk 0:01:17]}  Rd7 {[%clk 0:00:14]} 32. h5 {[%clk 0:01:04]}  Nb4 {[%clk 0:00:11]} 33. Qb3 {[%clk 0:00:58]}  Nd5 {[%clk 0:00:10]} 34. Rc1 {[%clk 0:00:43]}  f4 {[%clk 0:00:07]} 35. Rc8+ {[%clk 0:00:41]}  Kh7 {[%clk 0:00:07]} 36. Qc2+ {[%clk 0:00:41]}  e4 {[%clk 0:00:07]} 37. Re1 {[%clk 0:00:38]}  Re7 {[%clk 0:00:06]} 38. Rc6 {[%clk 0:00:36]}  Qf5 {[%clk 0:00:06]} 39. Rc5 {[%clk 0:00:34]}  Qe6 {[%clk 0:00:04]} 40. f3 {[%clk 0:00:32]}  Ne3 {[%clk 0:00:04]} 41. Qxe4+ {[%clk 0:00:27]}  Qxe4+ {[%clk 0:00:05]} 42. fxe4 {[%clk 0:00:28]}  Rxe4 {[%clk 0:00:05]} 43. Rf5 {[%clk 0:00:27]}  Kh6 {[%clk 0:00:02]} 44. Rxf4 {[%clk 0:00:16]}  Rxf4 {[%clk 0:00:02]} 45. Rxe3 {[%clk 0:00:16]}  Rf5 {[%clk 0:00:02]} 46. a4 {[%clk 0:00:16]}  Kxh5 {[%clk 0:00:03]} 47. Re7 {[%clk 0:00:16]}  a6 {[%clk 0:00:03]} 48. b6 {[%clk 0:00:14]}  Rf8 {[%clk 0:00:02]} 49. a5 {[%clk 0:00:14]}  Rb8 {[%clk 0:00:01]} 50. Kc2 {[%clk 0:00:14]}  g5 {[%clk 0:00:01]} 51. Kc3 {[%clk 0:00:14]}  g4 {[%clk 0:00:02]} 52. Rg7 {[%clk 0:00:14]}  Kh4 {[%clk 0:00:02]} 53. Kc4 {[%clk 0:00:14]}  g3 {[%clk 0:00:02]} 54. Kc5 {[%clk 0:00:14]}  Rc8+ {[%clk 0:00:02]} 55. Kd6 {[%clk 0:00:14]}  Rd8+ {[%clk 0:00:03]} 56. Kc7 {[%clk 0:00:14]}  Re8 {[%clk 0:00:04]} 57. b7 {[%clk 0:00:14]}  Rf8 {[%clk 0:00:04]} 58. b8=Q {[%clk 0:00:13]}  Rxb8 {[%clk 0:00:05]} 59. Kxb8 {[%clk 0:00:14]}  Kh3 {[%clk 0:00:06]} 60. Kb7 {[%clk 0:00:14]} 1-0


[Site "https://www.chess.com"]

[Event "Titled Tuesday Blitz May 23 Late 2023"]
[White "Vega Gutierrez, Sabrina"]
[Black "Makridis, Dimitrios"]
[WhiteFideId "2219026"]
[BlackFideId "25864475"]
[WhiteElo "2209"]
[BlackElo "2277"]
[Result "0-1"]
[Round "01"]
[TimeControl "180+2"]
[Date "2023.05.23"]
[WhiteClock "0:00:54"]
[BlackClock "0:00:43"]

1. e4 {[%clk 0:03:00]}  c5 {[%clk 0:02:50]} 2. Nf3 {[%clk 0:02:59]}  d6 {[%clk 0:02:38]} 3. d4 {[%clk 0:02:59]}  cxd4 {[%clk 0:02:39]} 4. Nxd4 {[%clk 0:02:54]}  Nf6 {[%clk 0:02:35]} 5. Nc3 {[%clk 0:02:51]}  Nc6 {[%clk 0:02:33]} 6. Nd5 {[%clk 0:02:13]}  Nxd5 {[%clk 0:02:13]} 7. exd5 {[%clk 0:02:14]}  Qa5+ {[%clk 0:02:13]} 8. Bd2 {[%clk 0:02:15]}  Qxd5 {[%clk 0:02:13]} 9. Nb5 {[%clk 0:02:13]}  Qe5+ {[%clk 0:02:05]} 10. Be2 {[%clk 0:02:11]}  d5 {[%clk 0:01:57]} 11. O-O {[%clk 0:01:53]}  a6 {[%clk 0:01:55]} 12. Nc3 {[%clk 0:01:50]}  e6 {[%clk 0:01:53]} 13. Re1 {[%clk 0:01:49]}  Bd6 {[%clk 0:01:50]} 14. g3 {[%clk 0:01:47]}  Qf6 {[%clk 0:01:44]} 15. Na4 {[%clk 0:01:30]}  O-O {[%clk 0:01:41]} 16. Nb6 {[%clk 0:01:29]}  Rb8 {[%clk 0:01:41]} 17. c4 {[%clk 0:01:29]}  Bc5 {[%clk 0:01:37]} 18. Be3 {[%clk 0:01:18]}  d4 {[%clk 0:01:35]} 19. Bf4 {[%clk 0:00:59]}  Bxb6 {[%clk 0:01:32]} 20. Bxb8 {[%clk 0:00:59]}  Nxb8 {[%clk 0:01:33]} 21. b4 {[%clk 0:01:00]}  Nc6 {[%clk 0:01:33]} 22. c5 {[%clk 0:01:00]}  Bc7 {[%clk 0:01:32]} 23. Qd2 {[%clk 0:01:00]}  e5 {[%clk 0:00:50]} 24. Bf3 {[%clk 0:00:54]}  Qxf3 {[%clk 0:00:43]} 0-1


[Site "https://www.chess.com"]

[Event "Titled Tuesday Blitz May 23 Late 2023"]
[White "Sieciechowicz, Marcin"]
[Black "Wizard_of_Odds"]
[WhiteFideId "1130170"]
[WhiteElo "2302"]
[BlackElo "2439"]
[Result "1-0"]
[Round "01"]
[TimeControl "180+2"]
[Date "2023.05.23"]
[WhiteClock "0:00:23"]
[BlackClock "0:00:00"]

1. d4 {[%clk 0:03:00]}  d5 {[%clk 0:02:57]} 2. Bf4 {[%clk 0:03:01]}  Nf6 {[%clk 0:02:57]} 3. e3 {[%clk 0:03:01]}  c5 {[%clk 0:02:57]} 4. c3 {[%clk 0:03:01]}  Nc6 {[%clk 0:02:58]} 5. Nd2 {[%clk 0:03:01]}  Bf5 {[%clk 0:02:58]} 6. Ngf3 {[%clk 0:03:00]}  e6 {[%clk 0:02:58]} 7. Nh4 {[%clk 0:02:59]}  Bg6 {[%clk 0:02:57]} 8. Qb3 {[%clk 0:02:57]}  Qb6 {[%clk 0:02:54]} 9. Nxg6 {[%clk 0:02:56]}  hxg6 {[%clk 0:02:53]} 10. h3 {[%clk 0:02:56]}  Be7 {[%clk 0:02:49]} 11. Be2 {[%clk 0:02:56]}  Qxb3 {[%clk 0:02:42]} 12. axb3 {[%clk 0:02:56]}  a6 {[%clk 0:02:42]} 13. dxc5 {[%clk 0:02:55]}  Bxc5 {[%clk 0:02:42]} 14. b4 {[%clk 0:02:56]}  Be7 {[%clk 0:02:37]} 15. b5 {[%clk 0:02:55]}  Nb8 {[%clk 0:02:29]} 16. bxa6 {[%clk 0:02:29]}  Nxa6 {[%clk 0:02:23]} 17. Bb5+ {[%clk 0:02:28]}  Kf8 {[%clk 0:01:20]} 18. Ke2 {[%clk 0:02:19]}  Ne8 {[%clk 0:01:12]} 19. e4 {[%clk 0:02:07]}  g5 {[%clk 0:01:06]} 20. Be3 {[%clk 0:01:59]}  Nec7 {[%clk 0:01:02]} 21. Bd3 {[%clk 0:01:44]}  Rd8 {[%clk 0:01:00]} 22. exd5 {[%clk 0:01:41]}  Nxd5 {[%clk 0:00:58]} 23. Bxa6 {[%clk 0:01:38]}  bxa6 {[%clk 0:00:54]} 24. Rxa6 {[%clk 0:01:38]}  Rb8 {[%clk 0:00:51]} 25. Rha1 {[%clk 0:01:28]}  f5 {[%clk 0:00:46]} 26. Nc4 {[%clk 0:01:18]}  Rh4 {[%clk 0:00:41]} 27. Ra8 {[%clk 0:01:12]}  Rxa8 {[%clk 0:00:38]} 28. Rxa8+ {[%clk 0:01:12]}  Kf7 {[%clk 0:00:37]} 29. Ne5+ {[%clk 0:01:04]}  Kf6 {[%clk 0:00:36]} 30. Bd4 {[%clk 0:01:01]}  Re4+ {[%clk 0:00:35]} 31. Kd2 {[%clk 0:00:52]}  Nf4 {[%clk 0:00:29]} 32. Nc6+ {[%clk 0:00:38]}  Kf7 {[%clk 0:00:27]} 33. Ra7 {[%clk 0:00:36]}  Nd5 {[%clk 0:00:20]} 34. Nxe7 {[%clk 0:00:34]}  Rxd4+ {[%clk 0:00:16]} 35. cxd4 {[%clk 0:00:34]}  Nxe7 {[%clk 0:00:17]} 36. b4 {[%clk 0:00:32]}  Kf6 {[%clk 0:00:17]} 37. b5 {[%clk 0:00:31]}  Nd5 {[%clk 0:00:17]} 38. Rd7 {[%clk 0:00:30]}  Nb6 {[%clk 0:00:16]} 39. Rc7 {[%clk 0:00:29]}  f4 {[%clk 0:00:14]} 40. Rc6 {[%clk 0:00:27]}  Nd5 {[%clk 0:00:10]} 41. b6 {[%clk 0:00:27]}  Ne7 {[%clk 0:00:10]} 42. Rc5 {[%clk 0:00:24]}  g4 {[%clk 0:00:02]} 43. hxg4 {[%clk 0:00:23]}  f3 {[%clk 0:00:02]} 44. gxf3 {[%clk 0:00:23]}  g5 {[%clk 0:00:03]} 45. b7 {[%clk 0:00:23]}  Nd5 {[%clk 0:00:03]} 46. Rxd5 {[%clk 0:00:23]}  exd5 {[%clk 0:00:00]} 47. b8=Q {[%clk 0:00:23]} 1-0


[Site "https://www.chess.com"]

[Event "Titled Tuesday Blitz May 23 Late 2023"]
[White "SergioMoralesG"]
[Black "Paichadze, Luka"]
[BlackFideId "13602934"]
[WhiteElo "2435"]
[BlackElo "2540"]
[Result "0-1"]
[Round "01"]
[TimeControl "180+2"]
[Date "2023.05.23"]
[WhiteClock "0:00:00"]
[BlackClock "0:00:09"]

1. d4 {[%clk 0:02:59]}  Nf6 {[%clk 0:02:59]} 2. c4 {[%clk 0:02:59]}  e6 {[%clk 0:02:59]} 3. Nf3 {[%clk 0:02:57]}  Bb4+ {[%clk 0:02:59]} 4. Nbd2 {[%clk 0:02:57]}  b6 {[%clk 0:02:59]} 5. a3 {[%clk 0:02:57]}  Bxd2+ {[%clk 0:03:00]} 6. Qxd2 {[%clk 0:02:58]}  Bb7 {[%clk 0:03:00]} 7. e3 {[%clk 0:02:57]}  O-O {[%clk 0:02:59]} 8. b4 {[%clk 0:02:55]}  Ne4 {[%clk 0:02:58]} 9. Qc2 {[%clk 0:02:55]}  a5 {[%clk 0:02:57]} 10. Bb2 {[%clk 0:02:51]}  axb4 {[%clk 0:02:57]} 11. axb4 {[%clk 0:02:52]}  Rxa1+ {[%clk 0:02:57]} 12. Bxa1 {[%clk 0:02:53]}  Qe7 {[%clk 0:02:57]} 13. c5 {[%clk 0:02:42]}  d6 {[%clk 0:02:55]} 14. Bd3 {[%clk 0:02:36]}  f5 {[%clk 0:02:50]} 15. cxb6 {[%clk 0:02:12]}  cxb6 {[%clk 0:02:49]} 16. O-O {[%clk 0:02:11]}  Rc8 {[%clk 0:02:49]} 17. Qa4 {[%clk 0:02:02]}  Ng5 {[%clk 0:02:42]} 18. Be2 {[%clk 0:01:21]}  Nxf3+ {[%clk 0:02:30]} 19. Bxf3 {[%clk 0:01:22]}  Bxf3 {[%clk 0:02:29]} 20. gxf3 {[%clk 0:01:22]}  d5 {[%clk 0:02:26]} 21. Bb2 {[%clk 0:01:16]}  Qb7 {[%clk 0:01:30]} 22. b5 {[%clk 0:01:11]}  Rc4 {[%clk 0:01:29]} 23. Qa3 {[%clk 0:00:57]}  Qc7 {[%clk 0:01:03]} 24. Ra1 {[%clk 0:00:49]}  Nd7 {[%clk 0:01:00]} 25. Qa7 {[%clk 0:00:46]}  Rc2 {[%clk 0:00:45]} 26. Qa8+ {[%clk 0:00:31]}  Qc8 {[%clk 0:00:11]} 27. Qxc8+ {[%clk 0:00:21]}  Rxc8 {[%clk 0:00:12]} 28. Ra7 {[%clk 0:00:20]}  Rd8 {[%clk 0:00:09]} 29. Ba3 {[%clk 0:00:16]}  Kf7 {[%clk 0:00:10]} 30. Bd6 {[%clk 0:00:14]}  Ke8 {[%clk 0:00:10]} 31. Rb7 {[%clk 0:00:08]}  Ra8 {[%clk 0:00:10]} 32. Bc7 {[%clk 0:00:06]}  Ra5 {[%clk 0:00:09]} 33. Ra7 {[%clk 0:00:00]}  Rxa7 {[%clk 0:00:09]} 0-1


[Site "https://www.chess.com"]